lending/lending_fUSD_20240504
["ID","MTS","AMOUNT","RATE_DAILY","PERIOD"]
[325406046,1714851057728,-253.230647,0.00032877,7]
[325406047,1714851057737,-151.0,0.00032877,7]
[325406048,1714851057747,-181.92438,0.00032877,7]
[325406049,1714851057756,-181.92438,0.00032877,7]
[325406050,1714851057766,-237.512164,0.00032877,7]
[325406051,1714851057775,-237.512164,0.00032877,7]
[325406052,1714851057784,-151.0,0.00032877,7]
[325406053,1714851057794,-151.0,0.00032877,7]
[325406054,1714851057803,-151.0,0.00032877,7]
[325406055,1714851057812,-205.119864,0.00032877,7]
[325406056,1714851057822,-205.119864,0.00032877,7]
[325406057,1714851057831,-156.081811,0.00032877,7]
[325406058,1714851057842,-156.081811,0.00032877,7]
[325406059,1714851057851,-151.0,0.00032877,7]
[325406060,1714851057860,-151.0,0.00032877,7]
[325406061,1714851057869,-548.906082,0.00032877,7]
[325406062,1714851057878,-247.395308,0.00032877,7]
[325406063,1714851057888,-151.0,0.00032877,7]
[325406064,1714851057897,-548.906082,0.00032877,7]
[325406065,1714851057907,-247.395308,0.00032877,7]
[325406066,1714851057916,-151.0,0.00032877,7]
[325406067,1714851057925,-179.742935,0.00032877,7]
[325406068,1714851057934,-179.742935,0.00032877,7]
[325406069,1714851057944,-207.03643,0.00032877,7]
[325406070,1714851057953,-207.03643,0.00032877,7]
[325406071,1714851057963,-151.485554,0.00032877,7]
[325406072,1714851057972,-151.485554,0.00032877,7]
[325406073,1714851057981,-244.904333,0.00032877,7]
[325406074,1714851057990,-244.904333,0.00032877,7]
[325406075,1714851058000,-573.609053,0.00032877,7]
[325406076,1714851058009,-573.609053,0.00032877,7]
[325406077,1714851058019,-226.11928,0.00032877,7]
[325406078,1714851058030,-151.0,0.00032877,7]
[325406079,1714851058041,-226.11928,0.00032877,7]
[325406080,1714851058051,-151.0,0.00032877,7]
[325406081,1714851058062,-151.0,0.00032877,7]
[325406082,1714851058072,-241.352972,0.00032877,7]
[325406083,1714851058082,-241.352972,0.00032877,7]
[325406084,1714851058092,-151.0,0.00032877,7]
[325406085,1714851058101,-151.0,0.00032877,7]
[325406086,1714851058111,-151.0,0.00032877,7]
[325406087,1714851058120,-151.0,0.00032877,7]
[325406088,1714851058129,-151.0,0.00032877,7]
[325406089,1714851058139,-626.003929,0.00032877,7]
[325406090,1714851058148,-626.003929,0.00032877,7]
[325406091,1714851058157,-768.445822,0.00032877,7]
[325406092,1714851058166,-768.445822,0.00032877,7]
[325406093,1714851058176,-291.887504,0.00032877,7]
[325406094,1714851058185,-291.887504,0.00032877,7]
[325406095,1714851058194,-417.413404,0.00032877,7]
[325406096,1714851058203,-952.196317,0.00032877,7]
[325406097,1714851058213,-952.196317,0.00032877,7]
[325406098,1714851058223,-417.413404,0.00032877,7]
[325406099,1714851058232,-168.943644,0.00032877,7]
[325406100,1714851058241,-151.0,0.00032877,7]
[325406101,1714851058251,-168.943644,0.00032877,7]
[325406102,1714851058261,-151.0,0.00032877,7]
[325406103,1714851058270,-151.0,0.00032877,7]
[325406104,1714851058280,-151.0,0.00032877,7]
[325406105,1714851058290,-196.706918,0.00032877,7]
[325406106,1714851058299,-173.766712,0.00032877,7]
[325406107,1714851058308,-196.706918,0.00032877,7]
[325406108,1714851058318,-471.24027,0.00032877,7]
[325406109,1714851058327,-415.030763,0.00032877,7]
[325406110,1714851058337,-471.24027,0.00032877,7]
[325406111,1714851058346,-415.030763,0.00032877,7]
[325406112,1714851058356,-153.968188,0.00032877,7]
[325406113,1714851058365,-153.968188,0.00032877,7]
[325406114,1714851058374,-151.0,0.00032877,7]
[325406115,1714851058384,-151.0,0.00032877,7]
[325406116,1714851058393,-304.530927,0.00032877,7]
[325406117,1714851058403,-277.103866,0.00032877,7]
[325406118,1714851058412,-304.530927,0.00032877,7]
[325406119,1714851058423,-277.103866,0.00032877,7]
[325406120,1714851058434,-283.008644,0.00032877,7]
[325406121,1714851058445,-283.008644,0.00032877,7]
[325406122,1714851058455,-151.0,0.00032877,7]
[325406123,1714851058466,-249.98956,0.00032877,7]
[325406124,1714851058476,-216.179692,0.00032877,7]
[325406125,1714851058486,-249.98956,0.00032877,7]
[325406126,1714851058496,-216.179692,0.00032877,7]
[325406127,1714851058508,-253.161467,0.00032877,7]
[325406128,1714851058518,-253.161467,0.00032877,7]
[325406129,1714851058527,-292.54551,0.00032877,7]
[325406130,1714851058536,-292.54551,0.00032877,7]
[325406131,1714851058546,-151.0,0.00032877,7]
[325406132,1714851058556,-151.0,0.00032877,7]
[325406133,1714851058565,-151.0,0.00032877,7]
[325406134,1714851058575,-226.889923,0.00032877,7]
[325406135,1714851058584,-151.0,0.00032877,7]
[325406136,1714851058593,-226.889923,0.00032877,7]
[325406137,1714851058604,-748.969284,0.00032877,7]
[325406138,1714851058613,-748.969284,0.00032877,7]
[325406139,1714851058622,-288.29424,0.00032877,7]
[325406140,1714851058631,-151.0,0.00032877,7]
[325406141,1714851058640,-288.29424,0.00032877,7]
[325406142,1714851058649,-736.838102,0.00032877,7]
[325406143,1714851058658,-736.838102,0.00032877,7]
[325406144,1714851058667,-151.0,0.00032877,7]
[325406145,1714851058677,-877.325222,0.00032877,7]
[325406146,1714851058686,-151.0,0.00032877,7]
[325406147,1714851058695,-877.325222,0.00032877,7]
[325406148,1714851058704,-152.075517,0.00032877,7]
[325406149,1714851058713,-151.0,0.00032877,7]
[325406150,1714851058722,-914.736561,0.00032877,7]
[325406151,1714851058732,-914.736561,0.00032877,7]
[325406152,1714851058740,-357.704333,0.00032877,7]
[325406153,1714851058749,-357.704333,0.00032877,7]
[325406154,1714851058759,-151.0,0.00032877,7]
[325406155,1714851058768,-151.0,0.00032877,7]
[325406156,1714851058776,-817.626311,0.00032877,7]
[325406157,1714851058786,-817.626311,0.00032877,7]
[325406158,1714851058795,-291.089466,0.00032877,7]
[325406159,1714851058804,-291.089466,0.00032877,7]
[325406160,1714851058814,-303.091819,0.00032877,7]
[325406161,1714851058823,-303.091819,0.00032877,7]
[325406162,1714851058832,-374.564147,0.00032877,7]
[325406163,1714851058841,-374.564147,0.00032877,7]
[325406164,1714851058851,-900.819523,0.00032877,7]
[325406165,1714851058861,-244.7948,0.00032877,7]
[325406166,1714851058870,-900.819523,0.00032877,7]
[325406167,1714851058879,-244.7948,0.00032877,7]
[325406168,1714851058889,-151.0,0.00032877,7]
[325406169,1714851058898,-173.187679,0.00032877,7]
[325406170,1714851058908,-173.187679,0.00032877,7]
[325406171,1714851058917,-1013.833633,0.00032877,7]
[325406172,1714851058926,-1013.833633,0.00032877,7]
[325406173,1714851058936,-253.230647,0.00032877,7]
[325406174,1714851058945,-253.230647,0.00032877,7]
[325406175,1714851058954,-616.88691308,0.00032897,7]
[325406176,1714851058963,-158.4359637,0.000329,30]
[325406177,1714851058972,-876.0,0.000329,2]
[325406178,1714851058981,-153.05823888,0.000329,2]
[325406179,1714851058990,-150.0,0.00032999,2]
[325406180,1714851059001,-1000.0,0.00033,4]
[325406181,1714851059010,-400.0,0.00033,120]
[325406182,1714851059019,-900.0,0.00033,34]
[325406183,1714851059029,-1108.5,0.00033,21]
[325406184,1714851059037,-873.0,0.00033,22]
[325406185,1714851059047,-1688.114527,0.00033,2]
[325406186,1714851059056,-1476.35801,0.00033,2]
[325406187,1714851059066,-373.54150503,0.0003307,7]
[325406188,1714851059075,-157.21535148,0.00033091,7]
[325406189,1714851059085,-152.0,0.00033091,4]
[325406190,1714851059094,-373.54150503,0.00033097,7]
[325406191,1714851059105,-166.03085823,0.00033104,7]
[325406192,1714851059114,-500.0,0.00033149,10]
[325406193,1714851059123,-150.0,0.00033165,2]
[325406194,1714851059133,-1800.0,0.00033184,2]
[325406195,1714851059142,-150.0,0.00033209,7]
[325406196,1714851059151,-165.48443862,0.00033218,7]
[325406197,1714851059160,-181.63031358,0.00033235,7]
[325406198,1714851059169,-561.21071718,0.00033283,7]
[325406199,1714851059179,-150.0,0.00033315,7]
[325406200,1714851059188,-153.61655889,0.00033339,7]
[325406201,1714851059198,-211.0,0.0003337,2]
[325406202,1714851059207,-260.31380509,0.0003338,7]
[325406203,1714851059217,-373.54150503,0.00033397,7]
[325406204,1714851059226,-373.54150503,0.00033415,7]
[325406205,1714851059235,-1000.0,0.00033423,10]
[325406206,1714851059245,-1000.0,0.00033423,10]
[325406207,1714851059255,-500.0,0.00033423,10]
[325406208,1714851059264,-500.0,0.00033423,10]
[325406209,1714851059274,-150.0,0.00033473,7]
[325406210,1714851059283,-166.66666667,0.00033483,7]
[325406211,1714851059292,-873.0,0.000335,22]
[325406212,1714851059303,-243.84167293,0.00033547,7]
[325406213,1714851059313,-153.61655889,0.00033609,7]
[325406214,1714851059322,-154.03738993,0.00033718,7]
[325406215,1714851059331,-150.0,0.00033737,7]
[325406216,1714851059340,-1444.83600649,0.00033751,7]
[325406217,1714851059350,-512.82,0.00033785,2]
[325406218,1714851059360,-296.77,0.00033785,2]
[325406219,1714851059369,-168.16,0.000338,2]
[325406220,1714851059379,-157.71,0.000338,2]
[325406221,1714851059388,-150.0,0.00033886,2]
[325406222,1714851059397,-1033.0,0.00033918,5]
[325406223,1714851059407,-5090.6005502,0.00033931,6]
[325406224,1714851059416,-373.54150503,0.00033952,7]
[325406225,1714851059429,-1000.0,0.00033971,10]
[325406226,1714851059438,-1000.0,0.00033971,10]
[325406227,1714851059448,-585.64667303,0.00033972,7]
[325406228,1714851059457,-215.91349007,0.00033972,7]
[325406229,1714851059467,-150.0,0.00033999,2]
[325406230,1714851059476,-1000.0,0.00034,5]
[325406231,1714851059485,-900.0,0.00034,35]
[325406232,1714851059495,-850.0,0.00034,3]
[325406233,1714851059508,-873.0,0.00034,23]
[325406234,1714851059517,-150.0,0.00034053,120]
[325406235,1714851059527,-169.10041956,0.00034158,7]
[325406236,1714851059536,-243.84167293,0.0003418,7]
[325406237,1714851059545,-1444.83600649,0.00034213,7]
[325406238,1714851059555,-500.0,0.00034245,10]
[325406239,1714851059564,-150.0,0.00034266,7]
[325406240,1714851059573,-150.0,0.00034266,7]
[325406241,1714851059582,-150.0,0.00034266,7]
[325406242,1714851059591,-616.88691308,0.00034273,7]
[325406243,1714851059602,-155.51787488,0.00034277,7]
[325406244,1714851059612,-152.57778558,0.00034468,7]
[325406245,1714851059621,-1124.65751876,0.000345,2]
[325406246,1714851059630,-890.782719,0.000345,23]
[325406247,1714851059639,-1000.0,0.00034519,10]
[325406248,1714851059649,-1000.0,0.00034519,10]
[325406249,1714851059658,-500.0,0.00034519,10]
[325406250,1714851059667,-500.0,0.00034519,10]
[325406251,1714851059677,-574.3,0.0003454,15]
[325406252,1714851059685,-150.0,0.00034548,10]
[325406253,1714851059695,-150.0,0.00034607,2]
[325406254,1714851059704,-165.4977495,0.00034627,7]
[325406255,1714851059714,-156.03484494,0.00034635,7]
[325406256,1714851059723,-155.51787488,0.00034665,7]
[325406257,1714851059732,-5093.23947524,0.00034729,2]
[325406258,1714851059742,-3319.18533816,0.00034729,2]
[325406259,1714851059751,-156.03484494,0.00034745,7]
[325406260,1714851059760,-616.88691308,0.00034748,7]
[325406261,1714851059770,-150.0,0.00034794,7]
[325406262,1714851059779,-211.0,0.0003484,2]
[325406263,1714851059788,-152.0,0.00034845,5]
[325406264,1714851059798,-154.96039253,0.00034859,7]
[325406265,1714851059808,-159.66647551,0.00034893,7]
[325406266,1714851059817,-26330.23490107,0.000349,2]
[325406267,1714851059826,-153.05823888,0.000349,2]
[325406268,1714851059836,-1444.83600649,0.00034916,7]
[325406269,1714851059845,-1091.693164,0.0003494,14]
[325406270,1714851059855,-1000.0,0.0003496,14]
[325406271,1714851059864,-1000.0,0.0003498,14]
[325406272,1714851059873,-539.57,0.00034999,2]
[325406273,1714851059883,-539.57,0.00034999,2]
[325406274,1714851059892,-539.57,0.00034999,2]
[325406275,1714851059902,-539.57,0.00034999,2]
[325406276,1714851059911,-539.57,0.00034999,2]
[325406277,1714851059920,-539.57,0.00034999,2]
[325406278,1714851059929,-539.57,0.00034999,2]
[325406279,1714851059938,-539.57,0.00034999,2]
[325406280,1714851059948,-539.57,0.00034999,2]
[325406281,1714851059957,-539.57,0.00034999,2]
[325406282,1714851059966,-150.0,0.00034999,2]
[325406283,1714851059975,-1285.12188479,0.00035,4]
[325406284,1714851059985,-23404.93,0.00035,15]
[325406285,1714851059993,-1000.0,0.00035,9]
[325406286,1714851060003,-653.27608532,0.00035,30]
[325406287,1714851060013,-167.41054016,0.00035,4]
[325406288,1714851060022,-150.0,0.00035,120]
[325406289,1714851060031,-900.0,0.00035,36]
[325406290,1714851060042,-300.0,0.00035,7]
[325406291,1714851060051,-9473.543276,0.00035,2]
[325406292,1714851060061,-1011.0,0.00035,2]
[325406293,1714851060070,-492.98413225,0.00035,120]
[325406294,1714851060080,-810.69554617,0.00035,2]
[325406295,1714851060089,-250.0,0.00035,3]
[325406296,1714851060099,-1000.0,0.00035,14]
[325406297,1714851060109,-1940.0,0.00035,30]
[325406298,1714851060119,-1518.9970557,0.00035,30]
[325406299,1714851060128,-616.88691308,0.00035002,7]
[325406300,1714851060138,-156.23613389,0.0003503,7]
[325406301,1714851060147,-2573.94,0.00035036,10]
[325406302,1714851060157,-154.96039253,0.00035044,7]
[325406303,1714851060166,-150.0,0.00035058,7]
[325406304,1714851060176,-1000.0,0.00035067,10]
[325406305,1714851060186,-1000.0,0.00035067,10]
[325406306,1714851060195,-1000.0,0.000351,7]
[325406307,1714851060205,-1000.0,0.000351,7]
[325406308,1714851060214,-1000.0,0.000351,7]
[325406309,1714851060224,-1000.0,0.000351,7]
[325406310,1714851060233,-1000.0,0.000351,7]
[325406311,1714851060243,-5000.0,0.00035125,10]
[325406312,1714851060253,-2500.0,0.00035149,10]
[325406313,1714851060263,-151.0,0.00035149,7]
[325406314,1714851060272,-181.92438,0.00035149,7]
[325406315,1714851060281,-181.92438,0.00035149,7]
[325406316,1714851060291,-237.512164,0.00035149,7]
[325406317,1714851060301,-237.512164,0.00035149,7]
[325406318,1714851060310,-5000.0,0.00035214,10]
[325406319,1714851060319,-12510.1,0.00035221,10]
[325406320,1714851060327,-5000.0,0.00035222,10]
[325406321,1714851060337,-151.0,0.00035222,7]
[325406322,1714851060346,-151.0,0.00035222,7]
[325406323,1714851060355,-151.0,0.00035222,7]
[325406324,1714851060365,-616.88691308,0.0003523,7]
[325406325,1714851060374,-163.60886975,0.00035231,7]
[325406326,1714851060383,-4075.27,0.0003525,10]
[325406327,1714851060392,-302.6,0.0003528,10]
[325406328,1714851060402,-2167.98,0.00035288,10]
[325406329,1714851060411,-1000.0,0.000353,7]
[325406330,1714851060421,-1000.0,0.000353,7]
[325406331,1714851060436,-1000.0,0.000353,7]
[325406332,1714851060446,-1000.0,0.000353,7]
[325406333,1714851060456,-150.0,0.00035322,7]
[325406334,1714851060466,-150.0,0.00035328,2]
[325406335,1714851060476,-500.0,0.00035341,10]
[325406336,1714851060487,-5072.38,0.00035365,10]
[325406337,1714851060497,-518.27,0.00035388,10]
[325406338,1714851060507,-2500.0,0.0003539,10]
[325406339,1714851060516,-5072.38,0.00035407,10]
[325406340,1714851060527,-181.63031358,0.00035454,7]
[325406341,1714851060536,-150.0,0.00035534,7]
[325406342,1714851060546,-5000.0,0.00035546,10]
[325406343,1714851060556,-5000.0,0.00035567,10]
[325406344,1714851060565,-2206.27794706,0.000356,30]
[325406345,1714851060575,-1000.0,0.000356,7]
[325406346,1714851060586,-1000.0,0.000356,7]
[325406347,1714851060595,-1777.85873092,0.000356,2]
[325406348,1714851060606,-876.84120297,0.000356,2]
[325406349,1714851060615,-205.119864,0.00035615,7]
[325406350,1714851060625,-205.119864,0.00035615,7]
[325406351,1714851060634,-156.081811,0.00035615,7]
[325406352,1714851060644,-156.081811,0.00035615,7]
[325406353,1714851060654,-511.79471943,0.00035615,10]
[325406354,1714851060664,-500.0,0.00035615,10]
[325406355,1714851060674,-300.0,0.00035616,2]
[325406356,1714851060683,-2520.36,0.00035635,10]
[325406357,1714851060694,-150.06,0.00035657,10]
[325406358,1714851060703,-151.68738032,0.00035702,7]
[325406359,1714851060713,-1033.0,0.00035704,5]
[325406360,1714851060722,-3407.76,0.00035796,10]
[325406361,1714851060732,-150.0,0.00035851,7]
[325406362,1714851060742,-150.0,0.00035851,7]
[325406363,1714851060751,-150.0,0.00035851,7]
[325406364,1714851060761,-243.84167293,0.00035857,7]
[325406365,1714851060770,-2520.36,0.00035862,10]
[325406366,1714851060780,-243.84167293,0.00035878,7]
[325406367,1714851060792,-268.2,0.0003588,14]
[325406368,1714851060801,-154.96039253,0.00035887,7]
[325406369,1714851060811,-365.51,0.0003589,120]
[325406370,1714851060820,-413.21,0.0003589,120]
[325406371,1714851060830,-1242.426461,0.00035899,15]
[325406372,1714851060839,-1000.0,0.000359,7]
[325406373,1714851060848,-266.98703,0.000359,7]
[325406374,1714851060859,-151.0,0.000359,7]
[325406375,1714851060868,-548.906082,0.000359,7]
[325406376,1714851060878,-247.395308,0.000359,7]
[325406377,1714851060887,-151.0,0.000359,7]
[325406378,1714851060897,-548.906082,0.000359,7]
[325406379,1714851060906,-247.395308,0.000359,7]
[325406380,1714851060916,-210.991916,0.000359,7]
[325406381,1714851060925,-179.742935,0.000359,7]
[325406382,1714851060935,-179.742935,0.000359,7]
[325406383,1714851060944,-207.03643,0.000359,7]
[325406384,1714851060954,-207.03643,0.000359,7]
[325406385,1714851060965,-151.485554,0.000359,7]
[325406386,1714851060974,-151.485554,0.000359,7]
[325406387,1714851060984,-244.904333,0.000359,7]
[325406388,1714851060993,-244.904333,0.000359,7]
[325406389,1714851061003,-573.609053,0.000359,7]
[325406390,1714851061012,-573.609053,0.000359,7]
[325406391,1714851061022,-226.11928,0.000359,7]
[325406392,1714851061031,-151.0,0.000359,7]
[325406393,1714851061041,-226.11928,0.000359,7]
[325406394,1714851061050,-151.0,0.000359,7]
[325406395,1714851061059,-241.352972,0.000359,7]
[325406396,1714851061068,-241.352972,0.000359,7]
[325406397,1714851061077,-151.0,0.000359,7]
[325406398,1714851061087,-151.0,0.000359,7]
[325406399,1714851061096,-151.0,0.000359,7]
[325406400,1714851061106,-153.968188,0.000359,7]
[325406401,1714851061116,-153.968188,0.000359,7]
[325406402,1714851061125,-304.530927,0.000359,7]
[325406403,1714851061135,-277.103866,0.000359,7]
[325406404,1714851061144,-304.530927,0.000359,7]
[325406405,1714851061153,-277.103866,0.000359,7]
[325406406,1714851061163,-283.008644,0.000359,7]
[325406407,1714851061173,-283.008644,0.000359,7]
[325406408,1714851061183,-151.0,0.000359,7]
[325406409,1714851061192,-249.98956,0.000359,7]
[325406410,1714851061202,-249.98956,0.000359,7]
[325406411,1714851061213,-1953.56964539,0.000359,2]
[325406412,1714851061223,-1953.56964521,0.000359,2]
[325406413,1714851061232,-1953.56964521,0.000359,2]
[325406414,1714851061242,-1953.56964521,0.000359,2]
[325406415,1714851061252,-1953.56964521,0.000359,2]
[325406416,1714851061262,-1953.56964521,0.000359,2]
[325406417,1714851061272,-1953.56964521,0.000359,2]
[325406418,1714851061282,-1953.56964521,0.000359,2]
[325406419,1714851061291,-1953.56964521,0.000359,2]
[325406420,1714851061301,-1953.56964521,0.000359,2]
[325406421,1714851061311,-1953.56964521,0.000359,2]
[325406422,1714851061322,-1953.56964521,0.000359,2]
[325406423,1714851061331,-1953.56964521,0.000359,2]
[325406424,1714851061341,-1953.56964521,0.000359,2]
[325406425,1714851061351,-1953.56964521,0.000359,2]
[325406426,1714851061361,-1953.56964521,0.000359,2]
[325406427,1714851061370,-1953.56964521,0.000359,2]
[325406428,1714851061380,-1953.56964521,0.000359,2]
[325406429,1714851061390,-1953.56964521,0.000359,2]
[325406430,1714851061400,-1953.56964521,0.000359,2]
[325406431,1714851061410,-12510.1,0.00035908,10]
[325406432,1714851061420,-216.179692,0.00035908,7]
[325406433,1714851061434,-216.179692,0.00035908,7]
[325406434,1714851061444,-253.161467,0.00035908,7]
[325406435,1714851061454,-253.161467,0.00035908,7]
[325406436,1714851061464,-292.54551,0.00035908,7]
[325406437,1714851061475,-292.54551,0.00035908,7]
[325406438,1714851061485,-151.0,0.00035908,7]
[325406439,1714851061495,-151.0,0.00035908,7]
[325406440,1714851061507,-151.0,0.00035908,7]
[325406441,1714851061519,-226.889923,0.00035908,7]
[325406442,1714851061528,-151.0,0.00035908,7]
[325406443,1714851061538,-226.889923,0.00035908,7]
[325406444,1714851061549,-152.08051347,0.00035934,7]
[325406445,1714851061559,-154.96039253,0.00035986,7]
[325406446,1714851061569,-150.0,0.00035999,2]
[325406447,1714851061579,-900.0,0.00036,37]
[325406448,1714851061589,-900.0,0.00036,3]
[325406449,1714851061599,-10000.0,0.00036,30]
[325406450,1714851061610,-748.969284,0.00036,7]
[325406451,1714851061620,-748.969284,0.00036,7]
[325406452,1714851061631,-288.29424,0.00036,7]
[325406453,1714851061641,-151.0,0.00036,7]
[325406454,1714851061650,-288.29424,0.00036,7]
[325406455,1714851061660,-736.838102,0.00036,7]
[325406456,1714851061671,-736.838102,0.00036,7]
[325406457,1714851061681,-151.0,0.00036,7]
[325406458,1714851061691,-877.325222,0.00036,7]
[325406459,1714851061701,-151.0,0.00036,7]
[325406460,1714851061711,-877.325222,0.00036,7]
[325406461,1714851061721,-239.792775,0.00036,7]
[325406462,1714851061731,-914.736561,0.00036,7]
[325406463,1714851061742,-914.736561,0.00036,7]
[325406464,1714851061752,-151.0,0.00036,7]
[325406465,1714851061762,-817.626311,0.00036,7]
[325406466,1714851061772,-817.626311,0.00036,7]
[325406467,1714851061782,-156.03484494,0.00036029,7]
[325406468,1714851061792,-150.0,0.00036049,2]
[325406469,1714851061803,-154.09323599,0.00036065,7]
[325406470,1714851061813,-561.21071718,0.00036095,7]
[325406471,1714851061824,-154.03738993,0.00036116,7]
[325406472,1714851061833,-1000.0,0.00036163,10]
[325406473,1714851061843,-1000.0,0.00036163,10]
[325406474,1714851061854,-151.0,0.00036163,7]
[325406475,1714851061864,-204.341608,0.00036163,7]
[325406476,1714851061874,-471.24027,0.00036163,7]
[325406477,1714851061885,-415.030763,0.00036163,7]
[325406478,1714851061895,-471.24027,0.00036163,7]
[325406479,1714851061905,-415.030763,0.00036163,7]
[325406480,1714851061915,-151.0,0.00036163,7]
[325406481,1714851061925,-151.0,0.00036163,7]
[325406482,1714851061936,-200.52883493,0.00036164,2]
[325406483,1714851061946,-373.54150503,0.0003618,7]
[325406484,1714851061956,-1000.0,0.000362,7]
[325406485,1714851061966,-154.03738993,0.0003624,7]
[325406486,1714851061976,-154.96039253,0.00036248,7]
[325406487,1714851061986,-153.61655889,0.00036283,7]
[325406488,1714851061996,-188.512179,0.00036292,7]
[325406489,1714851062007,-151.0,0.00036292,7]
[325406490,1714851062019,-626.003929,0.00036292,7]
[325406491,1714851062028,-626.003929,0.00036292,7]
[325406492,1714851062039,-211.0,0.0003631,2]
[325406493,1714851062049,-203.0,0.0003631,2]
[325406494,1714851062058,-243.84167293,0.00036347,7]
[325406495,1714851062068,-500.0,0.0003637,30]
[325406496,1714851062078,-421.0,0.0003637,30]
[325406497,1714851062087,-150.0,0.00036379,7]
[325406498,1714851062097,-153.94026569,0.00036396,7]
[325406499,1714851062107,-500.0,0.00036437,10]
[325406500,1714851062117,-561.21071718,0.00036446,7]
[325406501,1714851062127,-168.9255028,0.00036453,7]
[325406502,1714851062136,-373.54150503,0.00036553,7]
[325406503,1714851062145,-5090.6005502,0.00036559,9]
[325406504,1714851062155,-152.0,0.00036599,6]
[325406505,1714851062165,-1444.83600649,0.00036625,7]
[325406506,1714851062177,-150.0,0.00036643,7]
[325406507,1714851062188,-1444.83600649,0.00036644,7]
[325406508,1714851062198,-157.21535148,0.00036666,7]
[325406509,1714851062210,-357.704333,0.00036666,7]
[325406510,1714851062220,-357.704333,0.00036666,7]
[325406511,1714851062230,-151.0,0.00036666,7]
[325406512,1714851062241,-291.089466,0.00036666,7]
[325406513,1714851062251,-291.089466,0.00036666,7]
[325406514,1714851062262,-373.54150503,0.00036691,7]
[325406515,1714851062272,-506.8784195,0.00036711,10]
[325406516,1714851062283,-150.0,0.0003677,2]
[325406517,1714851062293,-152.57778558,0.00036793,7]
[325406518,1714851062303,-150.0,0.00036827,120]
[325406519,1714851062313,-243.84167293,0.00036831,7]
[325406520,1714851062322,-154.96039253,0.00036853,7]
[325406521,1714851062332,-10018.34600296,0.000369,7]
[325406522,1714851062342,-768.445822,0.000369,7]
[325406523,1714851062352,-768.445822,0.000369,7]
[325406524,1714851062361,-291.887504,0.000369,7]
[325406525,1714851062372,-417.413404,0.000369,7]
[325406526,1714851062383,-291.887504,0.000369,7]
[325406527,1714851062394,-952.196317,0.000369,7]
[325406528,1714851062406,-952.196317,0.000369,7]
[325406529,1714851062417,-417.413404,0.000369,7]
[325406530,1714851062430,-168.943644,0.000369,7]
[325406531,1714851062439,-151.0,0.000369,7]
[325406532,1714851062449,-168.943644,0.000369,7]
[325406533,1714851062459,-151.0,0.000369,7]
[325406534,1714851062469,-196.706918,0.000369,7]
[325406535,1714851062480,-196.706918,0.000369,7]
[325406536,1714851062489,-153.05823888,0.000369,2]
[325406537,1714851062499,-303.091819,0.000369,7]
[325406538,1714851062511,-303.091819,0.000369,7]
[325406539,1714851062521,-374.564147,0.000369,7]
[325406540,1714851062530,-374.564147,0.000369,7]
[325406541,1714851062540,-900.819523,0.000369,7]
[325406542,1714851062549,-244.7948,0.000369,7]
[325406543,1714851062559,-900.819523,0.000369,7]
[325406544,1714851062568,-244.7948,0.000369,7]
[325406545,1714851062578,-151.0,0.000369,7]